[Event "Titled Tuesday Blitz November 29 Early 2022"]
[White "Szpar, Milosz"]
[Black "Paravyan, David"]
[WhiteFideId "1184989"]
[BlackFideId "4194985"]
[WhiteElo "2422"]
[BlackElo "2546"]
[Result "0-1"]
[Round "07"]
[TimeControl "180+1"]
[Date "2022.11.30"]
[WhiteClock "0:00:05"]
[BlackClock "0:01:35"]

1. e4 {[%clk 0:03:00]}  e5 {[%clk 0:02:57]} 2. Nf3 {[%clk 0:03:00]}  Nf6 {[%clk 0:02:58]} 3. Nxe5 {[%clk 0:02:55]}  d6 {[%clk 0:02:57]} 4. Nf3 {[%clk 0:02:56]}  Nxe4 {[%clk 0:02:56]} 5. Nc3 {[%clk 0:02:56]}  Nxc3 {[%clk 0:02:57]} 6. dxc3 {[%clk 0:02:56]}  Be7 {[%clk 0:02:55]} 7. Be3 {[%clk 0:02:57]}  O-O {[%clk 0:02:54]} 8. Qd2 {[%clk 0:02:57]}  Nd7 {[%clk 0:02:54]} 9. O-O-O {[%clk 0:02:58]}  c6 {[%clk 0:02:54]} 10. h4 {[%clk 0:02:56]}  d5 {[%clk 0:02:54]} 11. Bd3 {[%clk 0:02:53]}  Re8 {[%clk 0:02:52]} 12. h5 {[%clk 0:02:40]}  Nc5 {[%clk 0:02:51]} 13. h6 {[%clk 0:02:36]}  g6 {[%clk 0:02:49]} 14. Rde1 {[%clk 0:02:11]}  Nxd3+ {[%clk 0:02:50]} 15. Qxd3 {[%clk 0:02:10]}  Bf5 {[%clk 0:02:48]} 16. Qd2 {[%clk 0:02:09]}  Bf8 {[%clk 0:02:47]} 17. Bg5 {[%clk 0:02:05]}  Qd7 {[%clk 0:02:45]} 18. Nd4 {[%clk 0:02:04]}  Rxe1+ {[%clk 0:02:44]} 19. Rxe1 {[%clk 0:02:04]}  Re8 {[%clk 0:02:40]} 20. Rxe8 {[%clk 0:02:00]}  Qxe8 {[%clk 0:02:41]} 21. Nxf5 {[%clk 0:02:00]}  gxf5 {[%clk 0:02:42]} 22. f3 {[%clk 0:01:24]}  f6 {[%clk 0:02:40]} 23. Bf4 {[%clk 0:01:11]}  Qh5 {[%clk 0:02:38]} 24. Qe1 {[%clk 0:00:59]}  Kf7 {[%clk 0:02:35]} 25. b3 {[%clk 0:00:38]}  Bxh6 {[%clk 0:02:33]} 26. Bxh6 {[%clk 0:00:38]}  Qxh6+ {[%clk 0:02:33]} 27. Kb2 {[%clk 0:00:38]}  Qh2 {[%clk 0:02:32]} 28. Qf2 {[%clk 0:00:37]}  b6 {[%clk 0:02:32]} 29. b4 {[%clk 0:00:36]}  h5 {[%clk 0:02:31]} 30. a4 {[%clk 0:00:36]}  h4 {[%clk 0:02:31]} 31. Qf1 {[%clk 0:00:29]}  Kg6 {[%clk 0:02:29]} 32. a5 {[%clk 0:00:19]}  bxa5 {[%clk 0:02:30]} 33. bxa5 {[%clk 0:00:20]}  Qb8+ {[%clk 0:02:30]} 34. Kc1 {[%clk 0:00:17]}  Qb5 {[%clk 0:02:21]} 35. Qf2 {[%clk 0:00:16]}  Qxa5 {[%clk 0:02:19]} 36. Qxh4 {[%clk 0:00:16]}  Qxc3 {[%clk 0:02:17]} 37. Qg3+ {[%clk 0:00:17]}  Kf7 {[%clk 0:02:12]} 38. Qc7+ {[%clk 0:00:17]}  Ke6 {[%clk 0:02:13]} 39. Qc8+ {[%clk 0:00:15]}  Kd6 {[%clk 0:02:09]} 40. Qb8+ {[%clk 0:00:14]}  Kd7 {[%clk 0:02:01]} 41. Qb7+ {[%clk 0:00:11]}  Ke6 {[%clk 0:02:01]} 42. Qc8+ {[%clk 0:00:11]}  Ke5 {[%clk 0:02:01]} 43. Qc7+ {[%clk 0:00:09]}  Kd4 {[%clk 0:01:52]} 44. Qxa7+ {[%clk 0:00:09]}  Qc5 {[%clk 0:01:49]} 45. Qa1+ {[%clk 0:00:08]}  Ke3 {[%clk 0:01:46]} 46. Qxf6 {[%clk 0:00:08]}  d4 {[%clk 0:01:45]} 47. Qh4 {[%clk 0:00:06]}  Ke2 {[%clk 0:01:43]} 48. Qf4 {[%clk 0:00:04]}  Qa3+ {[%clk 0:01:41]} 49. Kb1 {[%clk 0:00:04]}  Qb4+ {[%clk 0:01:41]} 50. Kc1 {[%clk 0:00:04]}  Qe1+ {[%clk 0:01:34]} 51. Kb2 {[%clk 0:00:05]}  Qc3+ {[%clk 0:01:35]} 52. Kc1 {[%clk 0:00:05]}  Qa1# {[%clk 0:01:35]} 0-1


[Site "https://www.chess.com"]

[Event "Titled Tuesday Blitz November 29 Early 2022"]
[White "Terzi, Alexei"]
[Black "Makhmudov, Shukhrat"]
[WhiteFideId "13505076"]
[BlackFideId "14200775"]
[WhiteElo "2172"]
[BlackElo "2135"]
[Result "1-0"]
[Round "07"]
[TimeControl "180+1"]
[Date "2022.11.30"]
[WhiteClock "0:02:33"]
[BlackClock "0:01:39"]

1. e4 {[%clk 0:03:00]}  e5 {[%clk 0:02:54]} 2. Nf3 {[%clk 0:03:00]}  Nc6 {[%clk 0:02:49]} 3. d4 {[%clk 0:03:01]}  exd4 {[%clk 0:02:45]} 4. Nxd4 {[%clk 0:03:02]}  Bc5 {[%clk 0:02:42]} 5. Nb3 {[%clk 0:03:02]}  Bb6 {[%clk 0:02:36]} 6. Nc3 {[%clk 0:03:01]}  Qf6 {[%clk 0:02:29]} 7. Qe2 {[%clk 0:03:00]}  Nge7 {[%clk 0:02:21]} 8. Be3 {[%clk 0:03:00]}  d6 {[%clk 0:02:02]} 9. O-O-O {[%clk 0:03:00]}  O-O {[%clk 0:01:59]} 10. f3 {[%clk 0:02:56]}  Bxe3+ {[%clk 0:01:57]} 11. Qxe3 {[%clk 0:02:56]}  Re8 {[%clk 0:01:56]} 12. Kb1 {[%clk 0:02:50]}  a6 {[%clk 0:01:56]} 13. g4 {[%clk 0:02:48]}  Be6 {[%clk 0:01:52]} 14. g5 {[%clk 0:02:41]}  Qe5 {[%clk 0:01:52]} 15. f4 {[%clk 0:02:36]}  Nf5 {[%clk 0:01:39]} 16. Qf2 {[%clk 0:02:33]} 1-0


[Site "https://www.chess.com"]

[Event "Titled Tuesday Blitz November 29 Early 2022"]
[White "Timofeev, Artyom"]
[Black "Le, Tuan Minh"]
[WhiteFideId "4140419"]
[BlackFideId "12401153"]
[WhiteElo "2837"]
[BlackElo "3013"]
[Result "1-0"]
[Round "07"]
[TimeControl "180+1"]
[Date "2022.11.30"]
[WhiteClock "0:00:03"]
[BlackClock "0:00:02"]

1. d4 {[%clk 0:03:00]}  d5 {[%clk 0:02:57]} 2. Nc3 {[%clk 0:03:00]}  Nf6 {[%clk 0:02:54]} 3. Bf4 {[%clk 0:02:59]}  Bf5 {[%clk 0:02:53]} 4. e3 {[%clk 0:02:58]}  a6 {[%clk 0:02:52]} 5. Nf3 {[%clk 0:02:55]}  e6 {[%clk 0:02:49]} 6. Bd3 {[%clk 0:02:54]}  Bg6 {[%clk 0:02:49]} 7. Ne5 {[%clk 0:02:54]}  Bd6 {[%clk 0:02:48]} 8. h4 {[%clk 0:02:51]}  Nbd7 {[%clk 0:02:41]} 9. h5 {[%clk 0:02:48]}  Bxd3 {[%clk 0:02:42]} 10. Nxd3 {[%clk 0:02:47]}  h6 {[%clk 0:02:38]} 11. Qf3 {[%clk 0:02:42]}  Qe7 {[%clk 0:02:35]} 12. O-O-O {[%clk 0:02:40]}  O-O-O {[%clk 0:02:35]} 13. Qg3 {[%clk 0:02:38]}  Bxf4 {[%clk 0:02:32]} 14. Nxf4 {[%clk 0:02:38]}  Kb8 {[%clk 0:02:32]} 15. Kb1 {[%clk 0:02:36]}  Nb6 {[%clk 0:02:31]} 16. Nd3 {[%clk 0:02:27]}  Nc4 {[%clk 0:02:27]} 17. b3 {[%clk 0:02:25]}  Nd6 {[%clk 0:02:26]} 18. f3 {[%clk 0:02:21]}  Ka8 {[%clk 0:02:14]} 19. a4 {[%clk 0:02:14]}  Rc8 {[%clk 0:02:06]} 20. Kb2 {[%clk 0:02:08]}  Nd7 {[%clk 0:02:01]} 21. e4 {[%clk 0:01:53]}  c6 {[%clk 0:01:40]} 22. Qf2 {[%clk 0:01:46]}  Rhd8 {[%clk 0:01:38]} 23. e5 {[%clk 0:01:25]}  Ne8 {[%clk 0:01:36]} 24. a5 {[%clk 0:01:25]}  c5 {[%clk 0:01:29]} 25. dxc5 {[%clk 0:01:20]}  Nxc5 {[%clk 0:01:29]} 26. Qd4 {[%clk 0:01:20]}  Nxd3+ {[%clk 0:01:15]} 27. Rxd3 {[%clk 0:01:18]}  Rc6 {[%clk 0:01:15]} 28. Na4 {[%clk 0:01:15]}  Kb8 {[%clk 0:01:14]} 29. c4 {[%clk 0:01:08]}  Nc7 {[%clk 0:01:07]} 30. c5 {[%clk 0:00:59]}  Nb5 {[%clk 0:01:04]} 31. Qh4 {[%clk 0:00:56]}  Qc7 {[%clk 0:01:03]} 32. Qg3 {[%clk 0:00:42]}  Qxa5 {[%clk 0:00:51]} 33. Qxg7 {[%clk 0:00:42]}  Rdc8 {[%clk 0:00:42]} 34. Qxh6 {[%clk 0:00:37]}  Qb4 {[%clk 0:00:09]} 35. Ra1 {[%clk 0:00:35]}  Qh4 {[%clk 0:00:08]} 36. g4 {[%clk 0:00:26]}  Qh2+ {[%clk 0:00:08]} 37. Qd2 {[%clk 0:00:25]}  Qxe5+ {[%clk 0:00:08]} 38. Ka2 {[%clk 0:00:24]}  d4 {[%clk 0:00:09]} 39. Re1 {[%clk 0:00:22]}  Qh8 {[%clk 0:00:05]} 40. h6 {[%clk 0:00:21]}  b6 {[%clk 0:00:04]} 41. Nxb6 {[%clk 0:00:16]}  R8c7 {[%clk 0:00:04]} 42. Na4 {[%clk 0:00:16]}  Ka7 {[%clk 0:00:05]} 43. g5 {[%clk 0:00:16]}  e5 {[%clk 0:00:05]} 44. f4 {[%clk 0:00:15]}  exf4 {[%clk 0:00:04]} 45. Qxf4 {[%clk 0:00:15]}  Nc3+ {[%clk 0:00:04]} 46. Nxc3 {[%clk 0:00:15]}  dxc3 {[%clk 0:00:04]} 47. Qe3 {[%clk 0:00:14]}  Kb7 {[%clk 0:00:03]} 48. Rxc3 {[%clk 0:00:14]}  Qh7 {[%clk 0:00:03]} 49. Qd3 {[%clk 0:00:13]}  Qh8 {[%clk 0:00:03]} 50. Rc2 {[%clk 0:00:11]}  Ka7 {[%clk 0:00:03]} 51. Qe4 {[%clk 0:00:10]}  Qg8 {[%clk 0:00:02]} 52. Qd5 {[%clk 0:00:09]}  Qg6 {[%clk 0:00:02]} 53. Rc4 {[%clk 0:00:09]}  Qh5 {[%clk 0:00:02]} 54. Ka3 {[%clk 0:00:08]}  Qh2 {[%clk 0:00:01]} 55. Rf1 {[%clk 0:00:05]}  Qe2 {[%clk 0:00:01]} 56. Rxf7 {[%clk 0:00:04]}  Qe1 {[%clk 0:00:02]} 57. Rxc7+ {[%clk 0:00:04]}  Rxc7 {[%clk 0:00:03]} 58. Ka2 {[%clk 0:00:04]}  Qe2+ {[%clk 0:00:03]} 59. Kb1 {[%clk 0:00:04]}  Rb7 {[%clk 0:00:04]} 60. Rc3 {[%clk 0:00:04]}  Qe1+ {[%clk 0:00:04]} 61. Kb2 {[%clk 0:00:04]}  Qe2+ {[%clk 0:00:05]} 62. Rc2 {[%clk 0:00:04]}  Qf1 {[%clk 0:00:05]} 63. c6 {[%clk 0:00:04]}  Rc7 {[%clk 0:00:05]} 64. Qc5+ {[%clk 0:00:04]}  Ka8 {[%clk 0:00:04]} 65. Qc4 {[%clk 0:00:04]}  Qf8 {[%clk 0:00:03]} 66. Qxa6+ {[%clk 0:00:04]}  Kb8 {[%clk 0:00:03]} 67. Qb6+ {[%clk 0:00:04]}  Kc8 {[%clk 0:00:04]} 68. Qc5 {[%clk 0:00:04]}  Qh8+ {[%clk 0:00:04]} 69. Qc3 {[%clk 0:00:04]}  Qe8 {[%clk 0:00:03]} 70. Qf6 {[%clk 0:00:04]}  Kb8 {[%clk 0:00:04]} 71. Qf4 {[%clk 0:00:04]}  Ka8 {[%clk 0:00:03]} 72. Qxc7 {[%clk 0:00:03]}  Qe4 {[%clk 0:00:02]} 73. Qb7# {[%clk 0:00:03]} 1-0


[Site "https://www.chess.com"]

[Event "Titled Tuesday Blitz November 29 Early 2022"]
[White "Troltenier, Dirk"]
[Black "Adel, Sara"]
[WhiteFideId "4606400"]
[BlackFideId "10616764"]
[WhiteElo "2332"]
[BlackElo "1994"]
[Result "0-1"]
[Round "07"]
[TimeControl "180+1"]
[Date "2022.11.30"]
[WhiteClock "0:00:00"]
[BlackClock "0:01:25"]

1. e4 {[%clk 0:03:00]}  c6 {[%clk 0:02:55]} 2. d4 {[%clk 0:03:00]}  d5 {[%clk 0:02:55]} 3. exd5 {[%clk 0:03:00]}  cxd5 {[%clk 0:02:56]} 4. c4 {[%clk 0:03:01]}  Nf6 {[%clk 0:02:55]} 5. Nc3 {[%clk 0:03:02]}  e6 {[%clk 0:02:49]} 6. Nf3 {[%clk 0:03:00]}  dxc4 {[%clk 0:02:47]} 7. Bxc4 {[%clk 0:02:59]}  Nc6 {[%clk 0:02:45]} 8. O-O {[%clk 0:02:58]}  Be7 {[%clk 0:02:44]} 9. a3 {[%clk 0:02:50]}  a6 {[%clk 0:02:38]} 10. Re1 {[%clk 0:02:47]}  b5 {[%clk 0:02:37]} 11. Ba2 {[%clk 0:02:46]}  Bb7 {[%clk 0:02:36]} 12. Qd3 {[%clk 0:02:28]}  Na5 {[%clk 0:02:31]} 13. Bg5 {[%clk 0:02:11]}  Nc4 {[%clk 0:02:26]} 14. Bxc4 {[%clk 0:01:41]}  bxc4 {[%clk 0:02:27]} 15. Qxc4 {[%clk 0:01:41]}  Rc8 {[%clk 0:02:27]} 16. Qd3 {[%clk 0:01:34]}  Qb6 {[%clk 0:02:23]} 17. Ne5 {[%clk 0:01:25]}  Qxb2 {[%clk 0:02:04]} 18. Rec1 {[%clk 0:00:55]}  Nd5 {[%clk 0:01:39]} 19. Bxe7 {[%clk 0:00:11]}  Rxc3 {[%clk 0:01:33]} 20. Qd1 {[%clk 0:00:00]}  Kxe7 {[%clk 0:01:25]} 0-1


[Site "https://www.chess.com"]

[Event "Titled Tuesday Blitz November 29 Early 2022"]
[White "Trost, Edvin"]
[Black "Ambartsumova, Karina"]
[WhiteFideId "1729519"]
[BlackFideId "4166299"]
[WhiteElo "2247"]
[BlackElo "2319"]
[Result "1/2-1/2"]
[Round "07"]
[TimeControl "180+1"]
[Date "2022.11.30"]
[WhiteClock "0:00:02"]
[BlackClock "0:00:02"]

1. e4 {[%clk 0:02:48]}  e5 {[%clk 0:02:57]} 2. Nf3 {[%clk 0:02:44]}  Nc6 {[%clk 0:02:57]} 3. Nc3 {[%clk 0:02:44]}  Nf6 {[%clk 0:02:56]} 4. a3 {[%clk 0:02:45]}  d5 {[%clk 0:02:44]} 5. exd5 {[%clk 0:02:46]}  Nxd5 {[%clk 0:02:45]} 6. Bb5 {[%clk 0:02:46]}  Nxc3 {[%clk 0:02:46]} 7. bxc3 {[%clk 0:02:47]}  Bd6 {[%clk 0:02:46]} 8. d4 {[%clk 0:02:45]}  exd4 {[%clk 0:02:44]} 9. cxd4 {[%clk 0:02:43]}  O-O {[%clk 0:02:45]} 10. O-O {[%clk 0:02:43]}  Bg4 {[%clk 0:02:43]} 11. Bxc6 {[%clk 0:02:41]}  bxc6 {[%clk 0:02:42]} 12. h3 {[%clk 0:02:41]}  Bh5 {[%clk 0:02:36]} 13. Re1 {[%clk 0:02:40]}  h6 {[%clk 0:02:25]} 14. Qd3 {[%clk 0:02:36]}  Bg6 {[%clk 0:02:22]} 15. Qc3 {[%clk 0:02:30]}  Qd7 {[%clk 0:02:08]} 16. Ne5 {[%clk 0:02:30]}  Bxe5 {[%clk 0:02:08]} 17. dxe5 {[%clk 0:02:31]}  Qf5 {[%clk 0:01:41]} 18. Re2 {[%clk 0:02:17]}  Rfd8 {[%clk 0:01:32]} 19. Bb2 {[%clk 0:02:13]}  Qe6 {[%clk 0:01:30]} 20. a4 {[%clk 0:02:02]}  Rd5 {[%clk 0:01:29]} 21. Rd2 {[%clk 0:01:54]}  Rad8 {[%clk 0:01:23]} 22. Rxd5 {[%clk 0:01:52]}  Rxd5 {[%clk 0:01:24]} 23. Re1 {[%clk 0:01:47]}  a5 {[%clk 0:01:01]} 24. Ba3 {[%clk 0:01:22]}  Kh7 {[%clk 0:00:56]} 25. Bc5 {[%clk 0:01:22]}  Qf5 {[%clk 0:00:40]} 26. Qxa5 {[%clk 0:00:56]}  Qxc2 {[%clk 0:00:37]} 27. Qxc7 {[%clk 0:00:48]}  Qxc5 {[%clk 0:00:35]} 28. Qb8 {[%clk 0:00:39]}  Bc2 {[%clk 0:00:32]} 29. Qb7 {[%clk 0:00:28]}  Rd1 {[%clk 0:00:20]} 30. Rxd1 {[%clk 0:00:26]}  Bxd1 {[%clk 0:00:21]} 31. a5 {[%clk 0:00:22]}  Qb5 {[%clk 0:00:05]} 32. a6 {[%clk 0:00:17]}  Bc2 {[%clk 0:00:03]} 33. f3 {[%clk 0:00:05]}  Bb3 {[%clk 0:00:03]} 34. Qc8 {[%clk 0:00:05]}  Bd5 {[%clk 0:00:03]} 35. a7 {[%clk 0:00:05]}  c5 {[%clk 0:00:03]} 36. Qf5+ {[%clk 0:00:06]}  g6 {[%clk 0:00:03]} 37. Qc8 {[%clk 0:00:05]}  Qc6 {[%clk 0:00:02]} 38. Qd8 {[%clk 0:00:04]}  c4 {[%clk 0:00:03]} 39. e6 {[%clk 0:00:03]}  fxe6 {[%clk 0:00:02]} 40. Qe7+ {[%clk 0:00:03]}  Kg8 {[%clk 0:00:03]} 41. Qd8+ {[%clk 0:00:04]}  Kf7 {[%clk 0:00:03]} 42. Qh8 {[%clk 0:00:04]}  e5 {[%clk 0:00:03]} 43. Qxe5 {[%clk 0:00:04]}  c3 {[%clk 0:00:03]} 44. Qf4+ {[%clk 0:00:03]}  Kg7 {[%clk 0:00:03]} 45. Qe5+ {[%clk 0:00:03]}  Kf7 {[%clk 0:00:03]} 46. Qf4+ {[%clk 0:00:03]}  Ke6 {[%clk 0:00:04]} 47. Qe3+ {[%clk 0:00:04]}  Kd7 {[%clk 0:00:04]} 48. a8=Q {[%clk 0:00:04]}  Qxa8 {[%clk 0:00:03]} 49. Qxc3 {[%clk 0:00:04]}  Qc6 {[%clk 0:00:04]} 50. Qg7+ {[%clk 0:00:05]}  Kc8 {[%clk 0:00:04]} 51. Qxh6 {[%clk 0:00:06]}  Kb7 {[%clk 0:00:04]} 52. Qg7+ {[%clk 0:00:05]}  Kb6 {[%clk 0:00:04]} 53. Qb2+ {[%clk 0:00:05]}  Kc7 {[%clk 0:00:05]} 54. Qg7+ {[%clk 0:00:06]}  Kb6 {[%clk 0:00:05]} 55. h4 {[%clk 0:00:06]}  Qc5+ {[%clk 0:00:05]} 56. Kh2 {[%clk 0:00:06]}  Qd6+ {[%clk 0:00:05]} 57. Kh1 {[%clk 0:00:07]}  Kc6 {[%clk 0:00:05]} 58. Qc3+ {[%clk 0:00:07]}  Kd7 {[%clk 0:00:06]} 59. Qg7+ {[%clk 0:00:07]}  Kc6 {[%clk 0:00:06]} 60. Qh8 {[%clk 0:00:06]}  Bc4 {[%clk 0:00:05]} 61. Qc8+ {[%clk 0:00:06]}  Kd5 {[%clk 0:00:05]} 62. Qb7+ {[%clk 0:00:05]}  Kd4 {[%clk 0:00:06]} 63. Qb2+ {[%clk 0:00:05]}  Kc5 {[%clk 0:00:05]} 64. Qa3+ {[%clk 0:00:05]}  Kd5 {[%clk 0:00:06]} 65. Qa5+ {[%clk 0:00:05]}  Ke6 {[%clk 0:00:06]} 66. Qg5 {[%clk 0:00:04]}  Kf7 {[%clk 0:00:06]} 67. h5 {[%clk 0:00:04]}  gxh5 {[%clk 0:00:05]} 68. Qxh5+ {[%clk 0:00:05]}  Qg6 {[%clk 0:00:03]} 69. Qc5 {[%clk 0:00:05]}  Qe6 {[%clk 0:00:03]} 70. Qc7+ {[%clk 0:00:05]}  Kf6 {[%clk 0:00:03]} 71. Kg1 {[%clk 0:00:05]}  Bd5 {[%clk 0:00:03]} 72. Qf4+ {[%clk 0:00:06]}  Ke7 {[%clk 0:00:03]} 73. Qh4+ {[%clk 0:00:06]}  Kd6 {[%clk 0:00:04]} 74. Qb4+ {[%clk 0:00:06]}  Ke5 {[%clk 0:00:04]} 75. Kf2 {[%clk 0:00:06]}  Kf6 {[%clk 0:00:05]} 76. Qh4+ {[%clk 0:00:06]}  Kf7 {[%clk 0:00:05]} 77. Qh7+ {[%clk 0:00:06]}  Kf6 {[%clk 0:00:05]} 78. Qh8+ {[%clk 0:00:07]}  Kf7 {[%clk 0:00:06]} 79. Qd8 {[%clk 0:00:06]}  Bc6 {[%clk 0:00:05]} 80. Qc7+ {[%clk 0:00:06]}  Qd7 {[%clk 0:00:06]} 81. Qf4+ {[%clk 0:00:06]}  Ke8 {[%clk 0:00:06]} 82. Qb8+ {[%clk 0:00:06]}  Kf7 {[%clk 0:00:07]} 83. Qb4 {[%clk 0:00:07]}  Qe6 {[%clk 0:00:06]} 84. Qc3 {[%clk 0:00:07]}  Qd5 {[%clk 0:00:06]} 85. Qb2 {[%clk 0:00:05]}  Bb5 {[%clk 0:00:06]} 86. Qh8 {[%clk 0:00:05]}  Qd3 {[%clk 0:00:06]} 87. Qh5+ {[%clk 0:00:04]}  Kg7 {[%clk 0:00:06]} 88. Qg5+ {[%clk 0:00:04]}  Kf7 {[%clk 0:00:07]} 89. Qh5+ {[%clk 0:00:04]}  Kg7 {[%clk 0:00:07]} 90. Qe5+ {[%clk 0:00:05]}  Kf7 {[%clk 0:00:07]} 91. Qc7+ {[%clk 0:00:05]}  Ke6 {[%clk 0:00:07]} 92. Qb6+ {[%clk 0:00:06]}  Kd7 {[%clk 0:00:08]} 93. Qb7+ {[%clk 0:00:06]}  Kd6 {[%clk 0:00:08]} 94. Qb8+ {[%clk 0:00:06]}  Kc5 {[%clk 0:00:08]} 95. Qc7+ {[%clk 0:00:05]}  Kb4 {[%clk 0:00:08]} 96. Kg3 {[%clk 0:00:06]}  Qe2 {[%clk 0:00:08]} 97. Qd6+ {[%clk 0:00:06]}  Ka4 {[%clk 0:00:07]} 98. Qd4+ {[%clk 0:00:05]}  Bc4 {[%clk 0:00:08]} 99. Kf4 {[%clk 0:00:04]}  Kb5 {[%clk 0:00:08]} 100. g4 {[%clk 0:00:04]}  Qe1 {[%clk 0:00:06]} 101. Qb2+ {[%clk 0:00:02]}  Kc6 {[%clk 0:00:06]} 102. Qf6+ {[%clk 0:00:02]}  Kb5 {[%clk 0:00:07]} 103. Kg5 {[%clk 0:00:02]}  Qd2+ {[%clk 0:00:06]} 104. f4 {[%clk 0:00:03]}  Bd3 {[%clk 0:00:05]} 105. Qe5+ {[%clk 0:00:03]}  Kc4 {[%clk 0:00:05]} 106. Qe6+ {[%clk 0:00:03]}  Kc3 {[%clk 0:00:05]} 107. Qe5+ {[%clk 0:00:04]}  Kc4 {[%clk 0:00:05]} 108. Kf6 {[%clk 0:00:05]}  Qg2 {[%clk 0:00:04]} 109. g5 {[%clk 0:00:05]}  Kb3 {[%clk 0:00:01]} 110. Qe6+ {[%clk 0:00:04]}  Bc4 {[%clk 0:00:01]} 111. Qb6+ {[%clk 0:00:04]}  Kc2 {[%clk 0:00:02]} 112. f5 {[%clk 0:00:05]}  Qd5 {[%clk 0:00:01]} 113. Qf2+ {[%clk 0:00:05]}  Kb3 {[%clk 0:00:02]} 114. g6 {[%clk 0:00:05]}  Qd6+ {[%clk 0:00:01]} 115. Kg7 {[%clk 0:00:05]}  Qe7+ {[%clk 0:00:02]} 116. Kh6 {[%clk 0:00:05]}  Qf8+ {[%clk 0:00:01]} 117. g7 {[%clk 0:00:06]}  Qf6+ {[%clk 0:00:01]} 118. Kh7 {[%clk 0:00:04]}  Qf7 {[%clk 0:00:02]} 119. Qg3+ {[%clk 0:00:05]}  Kc2 {[%clk 0:00:01]} 120. Qg2+ {[%clk 0:00:05]}  Kd3 {[%clk 0:00:02]} 121. Qh3+ {[%clk 0:00:05]}  Ke4 {[%clk 0:00:02]} 122. Qg4+ {[%clk 0:00:05]}  Ke5 {[%clk 0:00:02]} 123. Qg3+ {[%clk 0:00:04]}  Kxf5 {[%clk 0:00:03]} 124. Qf2+ {[%clk 0:00:04]}  Kg5 {[%clk 0:00:04]} 125. Qg2+ {[%clk 0:00:04]}  Kf5 {[%clk 0:00:04]} 126. Qc2+ {[%clk 0:00:05]}  Kg5 {[%clk 0:00:04]} 127. Qc1+ {[%clk 0:00:05]}  Kf5 {[%clk 0:00:03]} 128. Qb1+ {[%clk 0:00:05]}  Kg5 {[%clk 0:00:04]} 129. Qg1+ {[%clk 0:00:05]}  Kf5 {[%clk 0:00:04]} 130. Qc5+ {[%clk 0:00:05]}  Kg4 {[%clk 0:00:04]} 131. Qc8+ {[%clk 0:00:05]}  Be6 {[%clk 0:00:03]} 132. Qc5 {[%clk 0:00:01]}  Qg8+ {[%clk 0:00:02]} 133. Kh6 {[%clk 0:00:02]}  Bf7 {[%clk 0:00:02]} 134. Qd4+ {[%clk 0:00:02]}  Kf5 {[%clk 0:00:03]} 135. Qc5+ {[%clk 0:00:02]}  Ke6 {[%clk 0:00:03]} 136. Qe3+ {[%clk 0:00:02]}  Kd7 {[%clk 0:00:03]} 137. Qe5 {[%clk 0:00:02]}  Be6 {[%clk 0:00:03]} 138. Qb5+ {[%clk 0:00:01]}  Ke7 {[%clk 0:00:04]} 139. Qb7+ {[%clk 0:00:02]}  Kf6 {[%clk 0:00:04]} 140. Qf3+ {[%clk 0:00:03]}  Bf5 {[%clk 0:00:04]} 141. Qc3+ {[%clk 0:00:03]}  Kf7 {[%clk 0:00:04]} 142. Qc7+ {[%clk 0:00:03]}  Kf6 {[%clk 0:00:04]} 143. Qd6+ {[%clk 0:00:04]}  Be6 {[%clk 0:00:04]} 144. Qf4+ {[%clk 0:00:04]}  Ke7 {[%clk 0:00:05]} 145. Qf2 {[%clk 0:00:04]}  Bd5 {[%clk 0:00:04]} 146. Qc5+ {[%clk 0:00:04]}  Ke6 {[%clk 0:00:03]} 147. Qb6+ {[%clk 0:00:05]}  Ke5 {[%clk 0:00:04]} 148. Qe3+ {[%clk 0:00:05]}  Kd6 {[%clk 0:00:04]} 149. Qf4+ {[%clk 0:00:04]}  Kd7 {[%clk 0:00:04]} 150. Qf8 {[%clk 0:00:05]}  Qe6+ {[%clk 0:00:04]} 151. Kg5 {[%clk 0:00:03]}  Qe5+ {[%clk 0:00:04]} 152. Kh4 {[%clk 0:00:02]}  Qe4+ {[%clk 0:00:03]} 153. Kg5 {[%clk 0:00:02]}  Qe3+ {[%clk 0:00:03]} 154. Kg4 {[%clk 0:00:02]}  Qe6+ {[%clk 0:00:03]} 155. Kg3 {[%clk 0:00:02]}  Qe5+ {[%clk 0:00:03]} 156. Kf2 {[%clk 0:00:02]}  Qd4+ {[%clk 0:00:02]} 157. Kg3 {[%clk 0:00:02]}  Qe3+ {[%clk 0:00:02]} 158. Kh4 {[%clk 0:00:02]}  Qe4+ {[%clk 0:00:02]} 159. Kg5 {[%clk 0:00:03]}  Qe5+ {[%clk 0:00:02]} 160. Kh6 {[%clk 0:00:02]}  Qe6+ {[%clk 0:00:02]} 161. Kg5 {[%clk 0:00:02]}  Qe5+ {[%clk 0:00:02]} 1/2-1/2


[Site "https://www.chess.com"]

[Event "Titled Tuesday Blitz November 29 Early 2022"]
[White "Vakhlamov, Igor L."]
[Black "Petrovic, Aleksa"]
[WhiteFideId "24126748"]
[BlackFideId "967629"]
[WhiteElo "2401"]
[BlackElo "2224"]
[Result "1-0"]
[Round "07"]
[TimeControl "180+1"]
[Date "2022.11.30"]
[WhiteClock "0:00:14"]
[BlackClock "0:00:01"]

1. e4 {[%clk 0:02:24]}  e6 {[%clk 0:02:59]} 2. d4 {[%clk 0:02:24]}  d5 {[%clk 0:02:59]} 3. Nc3 {[%clk 0:02:25]}  Bb4 {[%clk 0:02:59]} 4. exd5 {[%clk 0:02:25]}  exd5 {[%clk 0:02:58]} 5. Bd3 {[%clk 0:02:25]}  Nc6 {[%clk 0:02:58]} 6. Nf3 {[%clk 0:02:25]}  Nge7 {[%clk 0:02:54]} 7. O-O {[%clk 0:02:25]}  O-O {[%clk 0:02:54]} 8. Ne2 {[%clk 0:02:19]}  Bf5 {[%clk 0:02:49]} 9. Ng3 {[%clk 0:02:17]}  Bxd3 {[%clk 0:02:45]} 10. Qxd3 {[%clk 0:02:18]}  Qd7 {[%clk 0:02:44]} 11. Bf4 {[%clk 0:02:00]}  f6 {[%clk 0:02:41]} 12. h4 {[%clk 0:01:56]}  Rae8 {[%clk 0:02:39]} 13. h5 {[%clk 0:01:52]}  Bd6 {[%clk 0:02:31]} 14. Bxd6 {[%clk 0:01:49]}  Qxd6 {[%clk 0:02:32]} 15. Rfe1 {[%clk 0:01:45]}  Qf4 {[%clk 0:02:20]} 16. Re2 {[%clk 0:01:37]}  Nc8 {[%clk 0:02:17]} 17. Rae1 {[%clk 0:01:36]}  Nd6 {[%clk 0:02:12]} 18. Qb3 {[%clk 0:01:27]}  Rxe2 {[%clk 0:01:16]} 19. Qxd5+ {[%clk 0:01:26]}  Kh8 {[%clk 0:01:15]} 20. Nxe2 {[%clk 0:01:19]}  Qg4 {[%clk 0:01:08]} 21. Ng3 {[%clk 0:01:13]}  Nb4 {[%clk 0:00:51]} 22. Qb3 {[%clk 0:01:09]}  Nc6 {[%clk 0:00:44]} 23. c3 {[%clk 0:00:50]}  f5 {[%clk 0:00:33]} 24. Qe6 {[%clk 0:00:44]}  h6 {[%clk 0:00:23]} 25. Ne5 {[%clk 0:00:32]}  Nxe5 {[%clk 0:00:19]} 26. dxe5 {[%clk 0:00:32]}  Nc4 {[%clk 0:00:06]} 27. Qe7 {[%clk 0:00:21]}  Rg8 {[%clk 0:00:05]} 28. Qxc7 {[%clk 0:00:21]}  Nd2 {[%clk 0:00:04]} 29. Qd7 {[%clk 0:00:17]}  Nc4 {[%clk 0:00:02]} 30. b3 {[%clk 0:00:17]}  Nb6 {[%clk 0:00:01]} 31. Qxf5 {[%clk 0:00:17]}  Qh4 {[%clk 0:00:01]} 32. Re4 {[%clk 0:00:17]}  Qd8 {[%clk 0:00:02]} 33. e6 {[%clk 0:00:17]}  Rf8 {[%clk 0:00:01]} 34. Qe5 {[%clk 0:00:14]} 1-0


[Site "https://www.chess.com"]